bitfinex/quotes_SOLUSD_20240914
["timestamp","ask_amount","ask_price","bid_price","bid_amount"]
[1726342512364,1.27213436,136.9,136.87,0.126149]
[1726342512883,20.0,136.89,136.87,0.126149]
[1726342515192,8.57713436,136.9,136.87,0.126149]
[1726342519691,7.3051,136.89,136.87,0.126149]
[1726342523083,7.3056,136.88,136.87,0.126149]
[1726342540893,31.082484,136.88,136.87,0.126149]
[1726342552235,7.3056,136.88,136.87,0.126149]
[1726342560743,7.3055,136.89,136.87,0.126149]
[1726342562047,7.3056,136.88,136.87,0.126149]
[1726342563319,7.3051,136.89,136.87,0.126149]
[1726342570460,7.3056,136.88,136.87,0.126149]
[1726342592196,51.333464,136.88,136.87,0.126149]
[1726342592508,51.458954,136.88,136.87,0.126149]
[1726342592800,52.7279448,136.88,136.87,0.126149]
[1726342593498,52.4769648,136.88,136.87,0.126149]
[1726342593685,52.3514748,136.88,136.87,0.126149]
[1726342603204,52.6024548,136.88,136.87,0.126149]
[1726342603381,52.7279448,136.88,136.87,0.126149]
[1726342604408,8.5745908,136.88,136.87,0.126149]
[1726342604707,1.2689908,136.88,136.87,0.126149]
[1726342605703,7.3051,136.89,136.87,0.126149]
[1726342609492,7.3046,136.9,136.87,0.126149]
[1726342609714,1.26898323,136.91,136.87,0.126149]
[1726342609905,7.304,136.92,136.87,7.73768268]
[1726342610220,7.304,136.92,136.87,37.13927237]
[1726342610398,8.57181376,136.93,136.87,37.13927237]
[1726342611099,8.57181376,136.93,136.88,14.33518969]
[1726342611322,8.57181376,136.93,136.87,35.67933869]
[1726342612091,7.3036,136.92,136.87,21.344149]
[1726342612605,7.3041,136.91,136.87,21.344149]
[1726342613191,7.3036,136.92,136.87,21.344149]
[1726342615923,8.57171376,136.93,136.87,35.67933869]
[1726342616811,8.57171376,136.93,136.88,14.33518969]
[1726342617016,1.26871376,136.93,136.89,14.33518969]
[1726342618595,1.26871376,136.93,136.88,14.46067969]
[1726342621035,8.57181376,136.93,136.87,35.67933869]
[1726342622025,8.57181376,136.93,136.87,21.344149]
[1726342622835,7.3036,136.92,136.87,21.344149]
[1726342623314,7.3041,136.91,136.87,21.344149]
[1726342624939,1.26871376,136.93,136.9,14.33518969]
[1726342625106,7.62157837,136.95,136.93,20.0]
[1726342625309,0.2514947,137.02,136.93,14.33518969]
[1726342625523,0.2514947,137.02,136.92,16.1322]
[1726342625715,0.2514947,137.02,136.93,14.33518969]
[1726342625911,0.2514947,137.02,136.92,16.1322]
[1726342626109,0.2514947,137.02,136.91,6.3412]
[1726342626734,0.2508357,136.98,136.91,6.3412]
[1726342626925,16.4544357,136.98,136.91,6.3412]
[1726342627333,7.3015,136.96,136.91,6.3412]
[1726342627844,7.3008,136.97,136.91,6.3412]
[1726342629621,23.6292457,136.98,136.91,20.67638969]
[1726342630318,23.6293457,136.98,136.91,20.67638969]
[1726342631049,23.6293457,136.98,136.91,6.3412]
[1726342633011,23.6293457,136.98,136.91,20.67638969]
[1726342640952,16.3289457,136.98,136.91,20.67638969]
[1726342648825,23.6294457,136.98,136.91,20.67638969]
[1726342652219,23.6294457,136.98,136.91,14.33518969]
[1726342652426,23.6294457,136.98,136.91,20.0]
[1726342662239,23.6294457,136.98,136.9,14.33518969]
[1726342662445,23.6294457,136.98,136.91,20.0]
[1726342662956,16.3289457,136.98,136.91,14.33518969]
[1726342663337,16.3289457,136.98,136.92,14.33518969]
[1726342667773,16.3289457,136.98,136.92,18.19897274]
[1726342667952,16.3289457,136.98,136.92,14.33518969]
[1726342668158,16.3289457,136.98,136.92,18.19897274]
[1726342668456,16.3289457,136.98,136.92,14.33518969]
[1726342668762,16.3289457,136.98,136.92,18.19897274]
[1726342668949,16.3289457,136.98,136.92,14.33518969]
[1726342669154,16.3289457,136.98,136.92,18.19897274]
[1726342669357,16.3289457,136.98,136.92,14.33518969]
[1726342670679,16.3289457,136.98,136.93,3.86378262]
[1726342670966,16.3289457,136.98,136.92,14.33518969]
[1726342671339,16.3289457,136.98,136.93,3.86378193]
[1726342671536,16.3289457,136.98,136.92,14.33518969]
[1726342671855,16.3289457,136.98,136.93,3.86387673]
[1726342672061,16.3289457,136.98,136.92,14.33518969]
[1726342672257,16.3289457,136.98,136.93,3.86373395]
[1726342672451,16.3289457,136.98,136.92,14.33518969]
[1726342672647,16.3289457,136.98,136.93,3.86373385]
[1726342672948,16.3289457,136.98,136.92,14.33518969]
[1726342673267,16.3289457,136.98,136.93,3.86373455]
[1726342673452,16.3289457,136.98,136.92,14.33518969]
[1726342673647,16.3289457,136.98,136.93,3.86370705]
[1726342673847,16.3289457,136.98,136.92,14.33518969]
[1726342674042,16.3289457,136.98,136.93,3.86370705]
[1726342674348,16.3289457,136.98,136.92,14.33518969]
[1726342674743,16.3289457,136.98,136.93,3.86370705]
[1726342674951,16.3289457,136.98,136.92,14.33518969]
[1726342675246,16.3289457,136.98,136.93,3.86370705]
[1726342675447,16.3289457,136.98,136.92,14.33518969]
[1726342675769,16.3289457,136.98,136.93,3.86384507]
[1726342675947,16.3289457,136.98,136.92,14.33518969]
[1726342676146,16.3289457,136.98,136.93,3.86384437]
[1726342676371,16.3289457,136.98,136.92,14.33518969]
[1726342676668,16.3289457,136.98,136.93,3.86384507]
[1726342676878,16.3289457,136.98,136.92,14.33518969]
[1726342677056,16.3289457,136.98,136.93,3.86384507]
[1726342677260,16.3289457,136.98,136.92,14.33518969]
[1726342677460,16.3289457,136.98,136.93,3.86384507]
[1726342677756,16.3289457,136.98,136.92,14.33518969]
[1726342677976,16.3289457,136.98,136.93,3.86384507]
[1726342678154,16.3289457,136.98,136.92,14.33518969]
[1726342678352,16.3289457,136.98,136.93,3.86378916]
[1726342678555,16.3289457,136.98,136.92,14.33518969]
[1726342678859,16.3289457,136.98,136.93,3.86378986]
[1726342679065,16.3289457,136.98,136.92,14.33518969]
[1726342679371,16.3289457,136.98,136.93,3.86384437]
[1726342679575,16.3289457,136.98,136.92,14.33518969]
[1726342679870,16.3289457,136.98,136.93,3.86384437]
[1726342680074,23.6292457,136.98,136.9,20.0]
[1726342680383,23.6292457,136.98,136.91,18.19903406]
[1726342680555,23.6292457,136.98,136.92,18.19903406]
[1726342680758,16.3289457,136.98,136.93,5.32326438]
[1726342681072,16.3289457,136.98,136.93,15.7946097]
[1726342681882,16.3289457,136.98,136.93,14.33518969]
[1726342684778,16.3289457,136.98,136.94,3.86351313]
[1726342684972,16.3289457,136.98,136.93,14.33518969]
[1726342685576,16.3289457,136.98,136.94,7.72699866]
[1726342686077,16.3289457,136.98,136.94,3.86351313]
[1726342686870,16.3289457,136.98,136.94,18.19870282]
[1726342689353,16.3289457,136.98,136.95,14.33518969]
[1726342695761,16.3289457,136.98,136.96,15.79338501]
[1726342695963,16.3289457,136.98,136.96,14.33518969]
[1726342696277,0.1253457,136.98,136.96,14.33518969]
[1726342696584,0.1253457,136.98,136.97,14.33518969]
[1726342701270,0.1253457,136.98,136.93,3.86320219]
[1726342701271,0.1253457,136.98,136.94,23.98870307]
[1726342701473,0.1253457,136.98,136.94,20.12549]
[1726342701677,0.1253457,136.98,136.94,34.46067969]
[1726342703885,0.1253457,136.98,136.93,3.86320219]
[1726342704092,15.3938457,136.98,136.93,20.0]
[1726342704267,15.3938457,136.98,136.88,0.126149]
[1726342704474,22.6942457,136.98,136.9,14.33518969]
[1726342704788,15.3938457,136.98,136.92,14.33518969]
[1726342710991,15.3938457,136.98,136.91,14.33518969]
[1726342711194,22.6942457,136.98,136.92,3.86399534]
[1726342711387,22.6942457,136.98,136.91,14.33518969]
[1726342711695,22.6942457,136.98,136.92,3.86399534]
[1726342712077,22.6942457,136.98,136.91,14.33518969]
[1726342716389,15.3938457,136.98,136.92,14.85465749]
[1726342716695,15.3938457,136.98,136.94,14.33518969]
[1726342716907,15.3938457,136.98,136.96,14.33518969]
[1726342717199,15.3938457,136.98,136.97,14.33518969]
[1726342717200,0.1253457,136.98,136.97,14.33518969]
[1726342717575,0.1253457,136.98,136.97,38.23756369]
[1726342717796,0.1253457,136.98,136.97,58.23756369]
[1726342739318,0.1253457,136.98,136.97,58.36305369]
[1726342739617,0.2514947,137.02,137.01,14.33518969]
[1726342741917,0.2514947,137.02,136.98,20.0]
[1726342742125,0.2514947,137.02,136.99,43.776884]
[1726342742493,0.2514947,137.02,136.99,44.254384]
[1726342742708,0.2514947,137.02,136.99,43.776884]
[1726342743116,0.2514947,137.02,136.99,20.0]
[1726342745018,0.2514947,137.02,136.98,20.0]
[1726342747021,0.2514947,137.02,136.96,43.776884]
[1726342747714,16.217,137.01,136.94,6.5538]
[1726342747911,16.217,137.01,136.94,14.33518969]
[1726342749404,16.217,137.01,136.95,23.776884]
[1726342750702,23.5157,137.01,136.93,14.33518969]
[1726342750912,23.5157,137.01,136.94,20.0]
[1726342755321,23.5157,137.01,136.92,34.58616969]
[1726342755505,23.5157,137.01,136.93,23.776884]
[1726342755927,23.5157,137.01,136.94,20.0]
[1726342759836,7.2998,136.99,136.91,38.36305369]
[1726342760222,7.2998,136.99,136.91,38.23756369]
[1726342760419,33.94659,137.0,136.91,38.23756369]
[1726342760941,33.94659,137.0,136.92,20.0]
[1726342766149,13.94659,137.0,136.92,20.0]
[1726342766830,7.2998,136.99,136.92,20.0]
[1726342767028,27.3013,136.97,136.88,0.2514947]
[1726342767332,20.0,136.97,136.88,30.2514947]
[1726342767537,20.0,136.97,136.89,14.33518969]
[1726342768353,20.0,136.97,136.9,23.776884]
[1726342770454,27.3009,136.97,136.9,23.776884]
[1726342770751,27.3009,136.97,136.88,14.83766439]
[1726342770945,15.1833,136.96,136.89,43.776884]
[1726342771141,21.7921,136.96,136.89,43.776884]
[1726342771555,29.0937,136.96,136.89,43.776884]
[1726342771758,29.0937,136.96,136.88,20.2514947]
[1726342773455,29.0937,136.96,136.88,0.2514947]
[1726342773753,29.0937,136.96,136.88,44.0283787]
[1726342779537,21.7921,136.96,136.88,58.36356839]
[1726342783162,21.7921,136.96,136.89,14.46067969]
[1726342783352,21.7921,136.96,136.9,23.776884]
[1726342791364,21.7921,136.96,136.91,1.46062095]
[1726342793980,21.7921,136.96,136.89,23.902374]
[1726342796261,21.7921,136.96,136.9,1.45990187]
[1726342796576,29.0936,136.96,136.88,34.58668439]
[1726342796755,30.36191318,136.96,136.88,0.2514947]
[1726342801966,29.0936,136.96,136.88,0.2514947]
[1726342802158,21.7921,136.96,136.88,0.2514947]
[1726342802376,21.7921,136.96,136.88,14.58668439]
[1726342802560,21.7921,136.96,136.89,20.0]
[1726342808496,29.0936,136.96,136.88,20.2514947]
[1726342810883,29.0936,136.96,136.88,34.58668439]
[1726342814398,21.7921,136.96,136.89,23.776884]
[1726342828901,29.0936,136.96,136.89,23.776884]
[1726342832789,7.3019,136.95,136.88,0.2514947]
[1726342834877,7.3019,136.95,136.88,20.2514947]
[1726342847927,30.36749468,136.96,136.88,20.2514947]
[1726342848106,21.7921,136.96,136.89,24.394803]
[1726342848608,21.7921,136.96,136.89,23.776884]
[1726342851114,29.0935,136.96,136.89,23.776884]
[1726342851415,29.0935,136.96,136.88,20.2514947]
[1726342856102,29.0935,136.96,136.88,0.2514947]
[1726342856319,29.0935,136.96,136.88,20.2514947]
[1726342857497,7.3019,136.95,136.88,20.2514947]
[1726342862505,29.0935,136.96,136.88,20.2514947]
[1726342873501,29.0935,136.96,136.89,23.776884]
[1726342873822,29.0935,136.96,136.9,1.46072209]
[1726342874721,29.0935,136.96,136.89,1.46067058]
[1726342876740,15.1833,136.96,136.91,20.0]
[1726342876905,18.2445,137.03,136.94,38.23756369]
[1726342876906,16.6424,137.0,136.94,38.23756369]
[1726342877110,24.2412684,137.0,136.96,38.23756369]
[1726342877329,7.5988684,137.0,136.98,14.33518969]
[1726342877513,0.2514947,137.02,136.99,1.45236143]
[1726342877708,0.2514947,137.02,136.99,15.78755112]
[1726342877952,0.2514947,137.02,136.98,14.33518969]
[1726342878111,0.2514947,137.02,136.99,20.0]
[1726342878923,0.2514947,137.02,136.97,14.33518969]
[1726342879109,0.2514947,137.02,136.97,20.0]
[1726342880134,0.2514947,137.02,136.97,21.07692899]
[1726342881437,0.2514947,137.02,136.97,35.41211868]
[1726342882046,0.2514947,137.02,136.98,1.45979264]
[1726342882238,0.2514947,137.02,136.97,34.33518969]
[1726342886354,0.2514947,137.02,136.98,23.902374]
[1726342888433,0.2514947,137.02,136.95,0.25098]
[1726342888649,0.2514947,137.02,136.97,20.0]
[1726342890156,0.2514947,137.02,136.95,0.25098]
[1726342890458,0.2514947,137.02,136.95,24.027864]
[1726342891530,0.2514947,137.02,136.96,20.0]
[1726342895456,0.2514947,137.02,136.97,14.33518969]
[1726342895960,0.2514947,137.02,136.96,20.0]
[1726342896167,0.2514947,137.02,136.96,34.33518969]
[1726342896862,0.2514947,137.02,136.96,20.0]
[1726342897969,0.2514947,137.02,136.92,20.0]
[1726342897970,6.7285947,137.02,136.92,20.0]
[1726342898138,22.7135,137.01,136.94,20.0]
[1726342898761,22.7135,137.01,136.93,20.0]
[1726342899142,30.31358364,137.01,136.93,20.0]
[1726342902164,27.2992,137.0,136.92,20.0]
[1726342903038,22.7147,136.99,136.88,0.2514947]
[1726342903266,22.7147,136.99,136.9,14.33518969]
[1726342904375,22.7147,136.99,136.91,43.902374]
[1726342912585,22.7147,136.99,136.91,58.23756369]
[1726342919472,15.4148,136.99,136.91,58.23756369]
[1726342931704,15.4148,136.99,136.92,14.33518969]
[1726342932000,15.4148,136.99,136.93,23.776884]
[1726342932707,15.4148,136.99,136.95,14.33518969]
[1726342932901,15.4148,136.99,136.96,1.45936205]
[1726342933079,15.4148,136.99,136.97,14.33518969]
[1726342933283,22.4560947,137.02,136.97,14.33518969]
[1726342933496,15.9789947,137.02,136.99,14.33518969]
[1726342933804,0.2514947,137.02,137.0,14.33518969]
[1726342934410,0.2514947,137.02,137.0,20.0]
[1726342940210,0.2514947,137.02,136.97,20.12549]
[1726342940387,0.2514947,137.02,137.0,14.33518969]
[1726342940719,0.2514947,137.02,136.99,14.33518969]
[1726342941007,0.2514947,137.02,137.0,20.0]
[1726342944407,0.2514947,137.02,137.0,14.33518969]
[1726342946009,21.6212894,137.06,137.0,14.33518969]
[1726342954218,15.7275,137.06,137.0,14.33518969]
[1726342959536,15.7275,137.06,137.01,15.794745]
[1726342959913,15.7275,137.06,137.02,14.33518969]
[1726342960212,15.7275,137.06,137.01,15.794745]
[1726342961525,7.5887079,137.07,137.01,15.794745]
[1726342961729,7.5887079,137.07,137.02,14.33518969]
[1726342961909,7.5887079,137.07,137.03,14.33518969]
[1726342963414,7.5887079,137.07,137.0,6.6225]
[1726342963415,7.5887079,137.07,137.04,14.33518969]
[1726342968731,7.5887079,137.07,137.03,14.33518969]
[1726342968937,7.5887079,137.07,137.02,14.33518969]
[1726342969126,7.5887079,137.07,137.01,58.36305369]
[1726342969428,7.5887079,137.07,137.01,38.36305369]
[1726342977833,7.5887079,137.07,137.0,6.6225]
[1726342978043,14.8842079,137.07,137.01,20.0]
[1726342978932,14.8842079,137.07,137.01,20.62369375]
[1726342979115,7.5887079,137.07,137.01,20.0]
[1726342981019,7.5887079,137.07,137.01,34.33518969]
[1726342988012,7.5887079,137.07,137.02,1.45847996]
[1726342988837,7.5887079,137.07,137.02,1.45752197]
[1726342990557,7.5887079,137.07,137.01,34.33518969]
[1726342990841,7.5887079,137.07,137.01,20.0]
[1726342990842,14.8843079,137.07,137.01,20.0]
[1726342991050,15.7854,137.06,137.01,20.0]
[1726342991538,23.0815,137.06,137.01,20.0]
[1726342991741,15.7854,137.06,136.98,20.0]
[1726342991921,15.7854,137.06,136.99,3.8616926]
[1726342992842,15.7854,137.06,136.99,3.86170753]
[1726342993040,23.0816,137.06,136.99,3.86170753]
[1726342993340,23.0816,137.06,136.99,18.19689722]
[1726342993651,23.0816,137.06,136.99,14.33518969]
[1726342993828,23.0816,137.06,136.99,18.19689722]
[1726342994027,23.0816,137.06,136.99,14.33518969]
[1726342994235,23.0816,137.06,136.99,18.19689722]
[1726342994443,23.0816,137.06,136.99,14.33518969]
[1726342994742,23.0816,137.06,136.99,18.19689722]
[1726342994941,23.0816,137.06,136.99,14.33518969]
[1726342995246,23.0816,137.06,136.99,18.19689722]
[1726342995448,23.0816,137.06,136.99,14.33518969]
[1726342995648,23.0816,137.06,136.99,18.19689722]
[1726342995850,23.0816,137.06,136.99,14.33518969]
[1726342996029,23.0816,137.06,136.99,18.19689722]
[1726342996232,23.0816,137.06,136.99,14.33518969]
[1726342996545,23.0816,137.06,136.99,18.19689722]
[1726342996736,23.0816,137.06,136.99,14.33518969]
[1726342996935,23.0816,137.06,136.99,18.19689722]
[1726342997136,23.0816,137.06,136.99,14.33518969]
[1726342997338,23.0816,137.06,136.99,18.19689722]
[1726342997553,23.0816,137.06,136.99,14.33518969]
[1726342998752,23.0816,137.06,136.99,18.19700801]
[1726342998960,23.0816,137.06,136.99,14.33518969]
[1726342999132,23.0816,137.06,136.99,18.19700801]
[1726342999332,23.0816,137.06,136.99,14.33518969]
[1726342999535,23.0816,137.06,136.99,18.19700801]
[1726342999755,23.0816,137.06,136.99,14.33518969]
[1726343000057,23.0816,137.06,136.99,18.19700801]
[1726343000734,23.0816,137.06,136.99,14.33518969]
[1726343001536,23.0816,137.06,136.99,18.19700801]
[1726343001749,23.0816,137.06,136.99,14.33518969]
[1726343002836,23.0816,137.06,136.98,14.33518969]
[1726343003056,7.2977,137.03,136.96,0.2514947]
[1726343003353,7.2977,137.03,136.96,30.2514947]
[1726343003354,15.5799,137.02,136.96,30.2514947]
[1726343003949,15.5799,137.02,136.96,0.2514947]
[1726343004331,15.5799,137.02,136.97,20.0]
[1726343007961,15.5799,137.02,136.96,0.2514947]
[1726343008162,7.2988,137.01,136.96,0.2514947]
[1726343008354,15.5799,137.02,136.96,0.2514947]
[1726343008863,22.8786,137.02,136.96,0.2514947]
[1726343009054,7.2989,137.01,136.96,0.2514947]
[1726343009362,13.9226,137.01,136.96,0.2514947]
[1726343010164,7.2993,137.0,136.96,0.2514947]
[1726343012569,13.9225,137.01,136.96,0.2514947]
[1726343034686,20.0,137.01,136.96,0.2514947]
[1726343037259,31.74329694,137.02,136.96,0.2514947]
[1726343037583,20.0,137.01,136.96,0.2514947]
[1726343066499,8.86509694,137.02,136.96,0.2514947]
[1726343066685,8.86509694,137.02,136.98,38.11207369]
[1726343066993,15.8299947,137.1,137.0,38.23756369]
[1726343067182,8.56747532,137.07,137.0,38.23756369]
[1726343067378,7.2955,137.07,137.0,23.902374]
[1726343067788,8.56744043,137.07,137.0,23.902374]
[1726343068108,20.0,137.06,137.0,23.902374]
[1726343068772,27.2962,137.06,136.99,20.0]
[1726343077303,27.2962,137.06,136.99,14.33518969]
[1726343077993,34.88027515,137.06,136.99,14.33518969]
[1726343085909,34.88027515,137.06,137.0,23.902374]
[1726343088308,34.88027515,137.06,136.99,14.33518969]
[1726343098132,7.2972,137.04,136.98,20.0]
[1726343098809,14.88241015,137.04,136.98,20.0]
[1726343100820,7.58521015,137.04,136.98,34.33518969]
[1726343101019,7.58521015,137.04,136.99,38.23756369]
[1726343101202,1.27232643,137.05,137.0,14.33518969]
[1726343101401,1.27232643,137.05,137.01,14.33518969]
[1726343104225,1.27232643,137.05,137.02,1.45810175]
[1726343104411,1.27232643,137.05,137.01,14.33518969]
[1726343104611,15.6226,137.06,137.01,14.33518969]
[1726343107329,8.85574402,137.08,137.03,38.11207369]
[1726343107632,8.85574402,137.08,137.04,15.79214289]
[1726343107807,8.85574402,137.08,137.05,1.45684689]
[1726343121948,8.85574402,137.08,137.04,14.33518969]
[1726343123457,8.85574402,137.08,137.05,1.45902499]
[1726343123948,8.85574402,137.08,137.04,14.33518969]
[1726343124454,8.85574402,137.08,137.05,1.45902355]
[1726343125433,8.85574402,137.08,137.04,14.33518969]
[1726343125946,8.85574402,137.08,137.05,1.45902429]
[1726343126146,8.85574402,137.08,137.05,23.902374]
[1726343126745,8.85574402,137.08,137.06,1.45815245]
[1726343126960,8.85574402,137.08,137.05,23.902374]
[1726343129553,8.85574402,137.08,137.06,1.45730134]
[1726343130257,8.85574402,137.08,137.05,23.902374]
[1726343132241,8.85574402,137.08,137.06,1.45898146]
[1726343132445,8.85574402,137.08,137.05,23.902374]
[1726343133648,7.5839634,137.08,137.05,23.902374]
[1726343134956,7.5839634,137.08,137.06,1.45812809]
[1726343136260,7.5839634,137.08,137.05,23.902374]
[1726343142243,7.5839634,137.08,137.04,14.33518969]
[1726343142443,7.5839634,137.08,137.04,20.0]
[1726343143149,7.5839634,137.08,137.03,20.12549]
[1726343143458,7.5839634,137.08,137.04,5.69507967]
[1726343143645,7.5839634,137.08,137.03,20.12549]
[1726343144046,7.5839634,137.08,137.04,5.69508057]
[1726343144246,7.5839634,137.08,137.03,20.12549]
[1726343144457,7.5839634,137.08,137.04,5.69508057]
[1726343144665,7.5839634,137.08,137.05,5.69508057]
[1726343144842,7.5839634,137.08,137.03,20.12549]
[1726343145042,7.5839634,137.08,137.04,6.68347572]
[1726343145253,7.5839634,137.08,137.05,5.69508002]
[1726343145564,7.5839634,137.08,137.03,20.12549]
[1726343145770,7.5839634,137.08,137.04,29.47196414]
[1726343145940,7.5839634,137.08,137.05,5.69508014]
[1726343146264,7.5839634,137.08,137.04,23.776884]
[1726343146443,7.5839634,137.08,137.05,5.69507834]
[1726343146645,7.5839634,137.08,137.04,23.776884]
[1726343146844,7.5839634,137.08,137.05,5.69507924]
[1726343147056,7.5839634,137.08,137.04,23.776884]
[1726343147258,7.5839634,137.08,137.05,5.69507834]
[1726343147564,7.5839634,137.08,137.04,23.776884]
[1726343147867,7.5839634,137.08,137.05,5.69507924]
[1726343148068,7.5839634,137.08,137.04,23.776884]
[1726343148269,7.5839634,137.08,137.05,5.69507834]
[1726343148442,7.5839634,137.08,137.04,23.776884]
[1726343148750,7.5839634,137.08,137.05,5.69507914]
[1726343148955,7.5839634,137.08,137.03,20.12549]
[1726343149161,7.5839634,137.08,137.04,5.69508004]
[1726343149463,7.5839634,137.08,137.05,5.69507914]
[1726343149761,7.5839634,137.08,137.06,5.6950568]
[1726343150063,7.5839634,137.08,137.03,20.12549]
[1726343150267,7.5839634,137.08,137.04,7.15416392]
[1726343150453,7.5839634,137.08,137.05,5.69503447]
[1726343150763,7.5839634,137.08,137.06,5.69503447]
[1726343150969,7.5839634,137.08,137.03,14.46067969]
[1726343151141,7.5839634,137.08,137.04,5.69503716]
[1726343151336,7.5839634,137.08,137.05,5.69503716]
[1726343151540,7.5839634,137.08,137.06,5.69503716]
[1726343151768,7.5839634,137.08,137.07,5.69503716]
[1726343152840,7.5839634,137.08,137.07,5.69501199]
[1726343153053,7.5839634,137.08,137.04,23.86027679]
[1726343153252,7.5839634,137.08,137.05,5.69501199]
[1726343153555,7.5839634,137.08,137.06,5.69501199]
[1726343153741,7.5839634,137.08,137.07,5.69501199]
[1726343159659,7.5839634,137.08,137.05,3.86024833]
[1726343159872,7.5839634,137.08,137.07,5.69504166]
[1726343160975,7.5839634,137.08,137.07,5.6949896]
[1726343162177,7.5839634,137.08,137.07,59.82104465]
[1726343162467,0.2514947,137.1,137.07,65.64148674]
[1726343162650,0.2514947,137.1,137.09,14.33518969]
[1726343162962,0.2514947,137.1,137.09,43.93251578]
[1726343163465,0.2514947,137.1,137.09,45.64150763]
[1726343163656,0.2514947,137.1,137.09,44.18349578]
[1726343163972,0.2514947,137.1,137.09,29.84830609]
[1726343165069,0.2514947,137.1,137.09,29.59732609]
[1726343165561,0.2514947,137.1,137.09,29.59581688]
[1726343168859,0.2514947,137.1,137.09,23.902374]
[1726343169067,0.2514947,137.1,137.09,29.59578153]
[1726343169375,0.2514947,137.1,137.09,5.69340753]
[1726343170763,0.2514947,137.1,137.05,6.2321]
[1726343170967,0.2514947,137.1,137.06,5.69448333]
[1726343171152,0.2514947,137.1,137.02,14.33518969]
[1726343171354,0.2514947,137.1,137.03,5.69489881]
[1726343171560,0.2514947,137.1,137.04,5.69489881]
[1726343171764,0.2514947,137.1,137.05,5.69489881]
[1726343172068,0.2514947,137.1,137.02,14.33518969]
[1726343172270,0.2514947,137.1,137.03,44.153354]
[1726343172457,0.2514947,137.1,137.04,5.69517885]
[1726343172768,0.2514947,137.1,137.05,5.69517885]
[1726343172967,7.2947,137.09,137.01,6.533]
[1726343173186,7.2947,137.09,137.02,5.69531875]
[1726343173378,7.2947,137.09,137.03,5.69531875]
[1726343173668,7.2947,137.09,137.04,5.69531875]
[1726343173864,7.2947,137.09,137.01,6.533]
[1726343174058,7.2947,137.09,137.02,5.69540469]
[1726343174260,7.2947,137.09,137.03,5.69540469]
[1726343174482,7.2947,137.09,137.04,5.69540469]
[1726343174661,7.2947,137.09,137.02,43.902374]
[1726343174859,7.2951,137.08,137.03,5.69542884]
[1726343175063,7.2951,137.08,136.96,7.8118507]
[1726343175064,16.3571,137.07,137.04,5.69542884]
[1726343175373,16.3571,137.07,136.98,14.33518969]
[1726343175783,16.3571,137.07,136.99,5.6954012]
[1726343175951,16.3571,137.07,137.0,5.6954012]
[1726343176277,16.3571,137.07,137.01,49.5977752]
[1726343176464,16.3571,137.07,137.02,5.6954012]
[1726343176658,16.3571,137.07,137.03,5.6954012]
[1726343176858,16.3571,137.07,137.04,5.6954012]
[1726343177057,16.3571,137.07,137.01,43.902374]
[1726343177271,16.3571,137.07,137.02,5.69541994]
[1726343177465,16.3571,137.07,137.03,5.69541994]
[1726343177664,16.3571,137.07,137.04,5.69541994]
[1726343177865,16.3571,137.07,137.01,43.902374]
[1726343178073,16.3571,137.07,137.02,5.69539795]
[1726343178270,16.3571,137.07,137.03,5.69539795]
[1726343178485,16.3571,137.07,137.04,5.69539795]
[1726343178786,16.3571,137.07,137.01,43.902374]
[1726343179153,16.3571,137.07,137.02,5.69543333]
[1726343179350,16.3571,137.07,137.03,5.69543333]
[1726343179587,16.3571,137.07,137.03,5.69539705]
[1726343179763,16.3571,137.07,137.04,5.69539705]
[1726343180082,16.3571,137.07,137.01,43.902374]
[1726343180288,16.3571,137.07,137.02,5.69545477]
[1726343180466,16.3571,137.07,137.01,43.902374]
[1726343180467,16.3571,137.07,137.03,5.69545477]
[1726343180776,16.3571,137.07,137.04,5.69545477]
[1726343180957,16.3571,137.07,137.01,43.902374]
[1726343181157,16.3571,137.07,137.02,5.69545262]
[1726343181356,16.3571,137.07,137.01,43.902374]
[1726343181357,16.3571,137.07,137.03,5.69545262]
[1726343181575,16.3571,137.07,137.04,5.69545262]
[1726343181889,16.3571,137.07,137.01,43.902374]
[1726343182580,22.4026,137.07,136.98,20.0]
[1726343183166,1.27255147,137.06,136.98,20.0]
[1726343183371,16.15525419,137.06,136.98,20.0]
[1726343183782,8.85915419,137.06,137.0,20.0]
[1726343184479,8.85915419,137.06,137.01,0.98683443]
[1726343184664,8.85915419,137.06,137.0,20.0]
[1726343186287,8.85915419,137.06,137.01,23.776884]
[1726343186484,1.27255147,137.06,137.01,23.776884]
[1726343186876,1.27255147,137.06,137.0,20.0]